[Event "*** Titled Tuesday Blitz"]
[Site "Chess.com"]
[Date "2018.09.04"]
[Round "2"]
[White "335394862"]
[Black "tigra"]
[Result "0-1"]
[WhiteElo "2330"]
[BlackElo "2690"]
[TimeControl "180+2"]
[EndTime "13:57:29 PDT"]
[Termination "tigra won by checkmate"]

1. e4 {[%clk 0:03:01.9]} 1... e6 {[%clk 0:02:26.9]} 2. d4 {[%clk 0:02:58.7]}
2... d5 {[%clk 0:02:27.5]} 3. Nd2 {[%clk 0:02:59.9]} 3... Be7 {[%clk 0:02:27]}
4. c3 {[%clk 0:02:59.1]} 4... c5 {[%clk 0:02:26.4]} 5. dxc5 {[%clk 0:02:54.9]}
5... Nf6 {[%clk 0:02:27.2]} 6. Bd3 {[%clk 0:02:54.4]} 6... O-O {[%clk
0:02:26.5]} 7. Ngf3 {[%clk 0:02:54.6]} 7... a5 {[%clk 0:02:19.4]} 8. Qe2 {[%clk
0:02:51.8]} 8... Na6 {[%clk 0:02:19]} 9. O-O {[%clk 0:02:47.4]} 9... Nxc5 {[%clk
0:02:19.2]} 10. Bc2 {[%clk 0:02:48.4]} 10... Nfxe4 {[%clk 0:02:18.1]} 11. Nxe4
{[%clk 0:02:49.3]} 11... Nxe4 {[%clk 0:02:19.1]} 12. Bxe4 {[%clk 0:02:50.2]}
12... dxe4 {[%clk 0:02:21]} 13. Qxe4 {[%clk 0:02:51.6]} 13... f6 {[%clk
0:02:11.8]} 14. Be3 {[%clk 0:02:45.2]} 14... e5 {[%clk 0:02:11.2]} 15. Qc4+
{[%clk 0:02:43.5]} 15... Kh8 {[%clk 0:02:11.5]} 16. Rad1 {[%clk 0:02:41.7]}
16... Qe8 {[%clk 0:02:11.9]} 17. Rd2 {[%clk 0:02:28.2]} 17... b5 {[%clk
0:02:06]} 18. Qd5 {[%clk 0:02:29.2]} 18... Bf5 {[%clk 0:01:59.6]} 19. Rfd1
{[%clk 0:02:25.9]} 19... Rd8 {[%clk 0:01:56]} 20. Qb7 {[%clk 0:02:27.3]} 20...
Rb8 {[%clk 0:01:53.1]} 21. Qa7 {[%clk 0:02:25.8]} 21... b4 {[%clk 0:01:32]} 22.
Qxa5 {[%clk 0:02:20.6]} 22... bxc3 {[%clk 0:01:32.7]} 23. bxc3 {[%clk
0:02:18.5]} 23... Ra8 {[%clk 0:01:26.7]} 24. Qd5 {[%clk 0:02:19.3]} 24... Qc8
{[%clk 0:01:16.2]} 25. Qb3 {[%clk 0:02:00.1]} 25... Be6 {[%clk 0:01:14.6]} 26.
Qb6 {[%clk 0:01:44.8]} 26... Rxa2 {[%clk 0:01:04.6]} 27. h3 {[%clk 0:01:40.5]}
27... Ra6 {[%clk 0:00:58.4]} 28. Qb2 {[%clk 0:01:36.1]} 28... Rc6 {[%clk
0:00:58.6]} 29. Rc1 {[%clk 0:01:33.4]} 29... Rc4 {[%clk 0:00:44.7]} 30. Rdd1
{[%clk 0:01:30.4]} 30... Qc6 {[%clk 0:00:21.4]} 31. Nd2 {[%clk 0:01:25.5]} 31...
Ra4 {[%clk 0:00:19.5]} 32. Ra1 {[%clk 0:01:23.7]} 32... Rfa8 {[%clk 0:00:18]}
33. Rxa4 {[%clk 0:01:22.1]} 33... Qxa4 {[%clk 0:00:19.9]} 34. Rc1 {[%clk
0:01:18]} 34... Ba3 {[%clk 0:00:19.2]} 35. Qb1 {[%clk 0:01:15.9]} 35... Bxc1
{[%clk 0:00:20]} 36. Qxc1 {[%clk 0:01:17.8]} 36... Qa1 {[%clk 0:00:20.9]} 37.
Qxa1 {[%clk 0:01:19.1]} 37... Rxa1+ {[%clk 0:00:21]} 38. Kh2 {[%clk 0:01:21]}
38... Ra3 {[%clk 0:00:21.6]} 39. c4 {[%clk 0:01:18.7]} 39... Rc3 {[%clk
0:00:22.2]} 40. c5 {[%clk 0:01:20]} 40... Bd5 {[%clk 0:00:22.3]} 41. Kg1 {[%clk
0:01:18.3]} 41... Kg8 {[%clk 0:00:21.6]} 42. Kf1 {[%clk 0:01:19.3]} 42... Kf7
{[%clk 0:00:22.4]} 43. Ke2 {[%clk 0:01:20]} 43... Ke6 {[%clk 0:00:23.5]} 44. f3
{[%clk 0:01:20.6]} 44... Bc4+ {[%clk 0:00:23.9]} 45. Nxc4 {[%clk 0:01:18.6]}
45... Rxc4 {[%clk 0:00:24.8]} 46. Kd3 {[%clk 0:01:20.2]} 46... Kd5 {[%clk
0:00:26.1]} 47. Bf2 {[%clk 0:01:16.6]} 47... f5 {[%clk 0:00:26.5]} 48. Ke2
{[%clk 0:01:14.5]} 48... Rxc5 {[%clk 0:00:26.7]} 49. Bxc5 {[%clk 0:01:13.4]}
49... Kxc5 {[%clk 0:00:28.6]} 50. Ke3 {[%clk 0:01:14]} 50... Kd5 {[%clk
0:00:28.4]} 51. Kd3 {[%clk 0:01:10.2]} 51... f4 {[%clk 0:00:29.1]} 52. Ke2
{[%clk 0:01:04.4]} 52... Kd4 {[%clk 0:00:29.7]} 53. Kd2 {[%clk 0:01:05.6]} 53...
g5 {[%clk 0:00:30.7]} 54. Ke2 {[%clk 0:01:03.3]} 54... Kc3 {[%clk 0:00:31.6]}
55. Kf2 {[%clk 0:01:04.5]} 55... Kd2 {[%clk 0:00:32.6]} 56. g3 {[%clk
0:01:03.9]} 56... h6 {[%clk 0:00:32.6]} 57. h4 {[%clk 0:01:01.1]} 57... Kd3
{[%clk 0:00:33.1]} 58. hxg5 {[%clk 0:01:01.3]} 58... hxg5 {[%clk 0:00:33.7]} 59.
Kg2 {[%clk 0:00:41.4]} 59... Ke2 {[%clk 0:00:33.9]} 60. g4 {[%clk 0:00:37.8]}
60... e4 {[%clk 0:00:34.6]} 61. Kh1 {[%clk 0:00:22.8]} 61... exf3 {[%clk
0:00:34.9]} 62. Kg1 {[%clk 0:00:22.6]} 62... f2+ {[%clk 0:00:35.7]} 63. Kh2
{[%clk 0:00:24.1]} 63... Kf3 {[%clk 0:00:36.6]} 64. Kh3 {[%clk 0:00:21.1]} 64...
f1=Q+ {[%clk 0:00:36.7]} 65. Kh2 {[%clk 0:00:22.6]} 65... Qg2# {[%clk
0:00:38.3]} 0-1

[Event "*** Titled Tuesday Blitz"]
[Site "Chess.com"]
[Date "2018.09.04"]
[Round "2"]
[White "Samuray111"]
[Black "VeraNebolsina"]
[Result "0-1"]
[WhiteElo "2592"]
[BlackElo "2405"]
[TimeControl "180+2"]
[EndTime "13:57:42 PDT"]
[Termination "VeraNebolsina won on time"]

1. e4 {[%clk 0:03:01]} 1... c5 {[%clk 0:03:00.3]} 2. Nf3 {[%clk 0:03:01.5]} 2...
d6 {[%clk 0:02:58.4]} 3. d4 {[%clk 0:03:02.5]} 3... cxd4 {[%clk 0:02:58.2]} 4.
Nxd4 {[%clk 0:03:04.4]} 4... Nf6 {[%clk 0:02:59.4]} 5. Nc3 {[%clk 0:03:04]} 5...
a6 {[%clk 0:03:00.6]} 6. h3 {[%clk 0:03:03.7]} 6... e5 {[%clk 0:03:01.2]} 7.
Nde2 {[%clk 0:03:04.1]} 7... h5 {[%clk 0:03:00.2]} 8. Bg5 {[%clk 0:03:04.1]}
8... Be7 {[%clk 0:03:00.9]} 9. Ng3 {[%clk 0:02:59.6]} 9... h4 {[%clk 0:02:48.3]}
10. Nf5 {[%clk 0:02:59.6]} 10... Bxf5 {[%clk 0:02:47.9]} 11. exf5 {[%clk
0:03:01.5]} 11... Nc6 {[%clk 0:02:37.3]} 12. Bc4 {[%clk 0:02:45.5]} 12... d5
{[%clk 0:02:31.4]} 13. Bxf6 {[%clk 0:02:35.5]} 13... dxc4 {[%clk 0:02:29.9]} 14.
Bxg7 {[%clk 0:02:07.6]} 14... Rg8 {[%clk 0:02:30.8]} 15. f6 {[%clk 0:02:01.5]}
15... Bxf6 {[%clk 0:02:05]} 16. Bxf6 {[%clk 0:02:00.9]} 16... Qxf6 {[%clk
0:02:05.5]} 17. Nd5 {[%clk 0:01:10.4]} 17... Qd6 {[%clk 0:02:02.1]} 18. O-O
{[%clk 0:01:02.1]} 18... Nd4 {[%clk 0:01:58.2]} 19. Ne3 {[%clk 0:01:02.7]} 19...
e4 {[%clk 0:01:27.1]} 20. Kh1 {[%clk 0:00:51.9]} 20... O-O-O {[%clk 0:01:23.6]}
21. c3 {[%clk 0:00:49.9]} 21... Nc6 {[%clk 0:00:52.5]} 22. Qxd6 {[%clk
0:00:46.2]} 22... Rxd6 {[%clk 0:00:53.4]} 23. Nxc4 {[%clk 0:00:46.8]} 23... Rdg6
{[%clk 0:00:54.4]} 24. Ne3 {[%clk 0:00:48.3]} 24... Ne5 {[%clk 0:00:53.8]} 25.
Rad1 {[%clk 0:00:44.4]} 25... Nd3 {[%clk 0:00:51.9]} 26. f3 {[%clk 0:00:32]}
26... f5 {[%clk 0:00:35.4]} 27. Nxf5 {[%clk 0:00:30.4]} 27... Rxg2 {[%clk
0:00:35.1]} 28. Ne7+ {[%clk 0:00:30.5]} 28... Kc7 {[%clk 0:00:29.4]} 29. Nxg8
{[%clk 0:00:30.4]} 29... Rxb2 {[%clk 0:00:29.5]} 30. fxe4 {[%clk 0:00:28.4]}
30... Nf2+ {[%clk 0:00:30.5]} 31. Rxf2 {[%clk 0:00:29.6]} 31... Rxf2 {[%clk
0:00:32]} 32. Ne7 {[%clk 0:00:30.9]} 32... Rxa2 {[%clk 0:00:30.9]} 33. Nf5
{[%clk 0:00:30.8]} 33... Re2 {[%clk 0:00:28]} 34. Nxh4 {[%clk 0:00:30.7]} 34...
Rxe4 {[%clk 0:00:28.5]} 35. Nf5 {[%clk 0:00:32.1]} 35... Rc4 {[%clk 0:00:26.9]}
36. Rc1 {[%clk 0:00:28.4]} 36... b5 {[%clk 0:00:27]} 37. Ne3 {[%clk 0:00:23.2]}
37... Re4 {[%clk 0:00:28]} 38. Ng4 {[%clk 0:00:18.8]} 38... a5 {[%clk 0:00:26]}
39. Kg2 {[%clk 0:00:19.8]} 39... a4 {[%clk 0:00:26.1]} 40. Kf3 {[%clk
0:00:20.7]} 40... Rc4 {[%clk 0:00:26.9]} 41. Ne3 {[%clk 0:00:21.8]} 41... Rh4
{[%clk 0:00:26.6]} 42. Kg3 {[%clk 0:00:22.4]} 42... Re4 {[%clk 0:00:27.6]} 43.
Kf3 {[%clk 0:00:23.4]} 43... Rh4 {[%clk 0:00:28]} 44. Rh1 {[%clk 0:00:24.2]}
44... a3 {[%clk 0:00:27.7]} 45. Kg3 {[%clk 0:00:25.1]} 45... Ra4 {[%clk
0:00:26.7]} 46. h4 {[%clk 0:00:26.3]} 46... a2 {[%clk 0:00:27.1]} 47. Nc2 {[%clk
0:00:19]} 47... Rc4 {[%clk 0:00:28.1]} 48. Nb4 {[%clk 0:00:11.2]} 48... Rxc3+
{[%clk 0:00:28]} 49. Kf2 {[%clk 0:00:12.4]} 49... Ra3 {[%clk 0:00:25.6]} 50. Ra1
{[%clk 0:00:11.5]} 50... Rb3 {[%clk 0:00:21.6]} 51. Nxa2 {[%clk 0:00:11.6]}
51... Rh3 {[%clk 0:00:19.7]} 52. Rb1 {[%clk 0:00:12.3]} 52... Rh2+ {[%clk
0:00:18.1]} 53. Kg3 {[%clk 0:00:13.4]} 53... Rxa2 {[%clk 0:00:18.9]} 54. Rxb5
{[%clk 0:00:14.7]} 54... Kd7 {[%clk 0:00:19.2]} 55. Re5 {[%clk 0:00:16.1]} 55...
Kd6 {[%clk 0:00:13.4]} 0-1

[Event "*** Titled Tuesday Blitz"]
[Site "Chess.com"]
[Date "2018.09.04"]
[Round "2"]
[White "ozates"]
[Black "The_Jagermeister"]
[Result "1-0"]
[WhiteElo "2374"]
[BlackElo "2482"]
[TimeControl "180+2"]
[EndTime "13:57:45 PDT"]
[Termination "ozates won by resignation"]

1. e4 {[%clk 0:03:01.9]} 1... e6 {[%clk 0:03:01.3]} 2. Nc3 {[%clk 0:03:03.6]}
2... d5 {[%clk 0:03:02.5]} 3. d4 {[%clk 0:03:05.1]} 3... Nf6 {[%clk 0:03:02.1]}
4. e5 {[%clk 0:03:04.1]} 4... Nfd7 {[%clk 0:03:03]} 5. f4 {[%clk 0:03:04.8]}
5... c5 {[%clk 0:03:04.5]} 6. Nf3 {[%clk 0:03:06.7]} 6... Nc6 {[%clk 0:03:06.1]}
7. Be3 {[%clk 0:03:05.2]} 7... a6 {[%clk 0:03:07.5]} 8. Qd2 {[%clk 0:03:04.5]}
8... b5 {[%clk 0:03:08.7]} 9. O-O-O {[%clk 0:03:01.2]} 9... c4 {[%clk
0:03:05.2]} 10. f5 {[%clk 0:03:01.2]} 10... b4 {[%clk 0:03:05.7]} 11. fxe6
{[%clk 0:03:01.8]} 11... fxe6 {[%clk 0:03:04.4]} 12. Nb1 {[%clk 0:03:01.4]}
12... Qa5 {[%clk 0:03:01.4]} 13. Qf2 {[%clk 0:02:59.2]} 13... Be7 {[%clk
0:02:59.7]} 14. Bg5 {[%clk 0:02:56]} 14... O-O {[%clk 0:02:57.3]} 15. Qh4 {[%clk
0:02:53.7]} 15... Qd8 {[%clk 0:02:48]} 16. Be2 {[%clk 0:02:53.3]} 16... h6
{[%clk 0:02:42.1]} 17. Bxe7 {[%clk 0:02:53.6]} 17... Nxe7 {[%clk 0:02:41.1]} 18.
g3 {[%clk 0:02:49.1]} 18... Ra7 {[%clk 0:02:23.8]} 19. a3 {[%clk 0:02:33.2]}
19... a5 {[%clk 0:02:18.1]} 20. Qh3 {[%clk 0:02:15.6]} 20... Nb6 {[%clk
0:02:09.1]} 21. Nh4 {[%clk 0:02:16.3]} 21... Na4 {[%clk 0:01:55.3]} 22. Rhf1
{[%clk 0:02:13.6]} 22... Rxf1 {[%clk 0:01:53.3]} 23. Rxf1 {[%clk 0:02:13]} 23...
c3 {[%clk 0:01:53.8]} 24. b3 {[%clk 0:02:07.7]} 24... bxa3 {[%clk 0:01:46.5]}
25. Nxa3 {[%clk 0:02:02.4]} 25... Qb6 {[%clk 0:01:46.6]} 26. Nb5 {[%clk
0:02:00.6]} 26... Nb2 {[%clk 0:01:38.8]} 27. Nxa7 {[%clk 0:01:36.7]} 27... Qxa7
{[%clk 0:01:32.2]} 28. Qg4 {[%clk 0:01:31.5]} 28... a4 {[%clk 0:01:24.8]} 29.
Qf4 {[%clk 0:01:30.9]} 29... Nf5 {[%clk 0:01:23.9]} 30. Nxf5 {[%clk 0:01:24.2]}
30... exf5 {[%clk 0:01:24.3]} 31. b4 {[%clk 0:01:04.2]} 31... a3 {[%clk
0:01:23.4]} 32. Kb1 {[%clk 0:01:04.9]} 32... a2+ {[%clk 0:01:22.8]} 33. Ka1
{[%clk 0:01:06.1]} 33... Qa3 {[%clk 0:01:22.9]} 34. Qc1 {[%clk 0:01:01.4]} 34...
Qxb4 {[%clk 0:01:23.4]} 35. Bf3 {[%clk 0:00:59]} 35... Be6 {[%clk 0:01:21.8]}
36. Re1 {[%clk 0:00:38.9]} 36... Qxd4 {[%clk 0:01:18.5]} 37. h3 {[%clk
0:00:34.1]} 37... Qb4 {[%clk 0:01:12.8]} 38. g4 {[%clk 0:00:34]} 38... fxg4
{[%clk 0:01:12.7]} 39. Bxg4 {[%clk 0:00:35.9]} 39... Bxg4 {[%clk 0:01:08.3]} 40.
hxg4 {[%clk 0:00:36.2]} 40... Nc4 {[%clk 0:00:51.4]} 41. e6 {[%clk 0:00:29.5]}
41... Nd6 {[%clk 0:00:17.5]} 42. g5 {[%clk 0:00:18.7]} 42... hxg5 {[%clk
0:00:18]} 43. e7 {[%clk 0:00:17.1]} 43... Kf7 {[%clk 0:00:19.1]} 44. Kxa2 {[%clk
0:00:17.3]} 44... Qc4+ {[%clk 0:00:18.2]} 45. Ka1 {[%clk 0:00:15.6]} 45... Ke8
{[%clk 0:00:18.9]} 46. Qa3 {[%clk 0:00:15]} 46... Qc6 {[%clk 0:00:17.4]} 47. Re6
{[%clk 0:00:15.7]} 47... Nb5 {[%clk 0:00:09.5]} 48. Rxc6 {[%clk 0:00:11.8]}
48... Nxa3 {[%clk 0:00:10.7]} 49. Rxc3 {[%clk 0:00:13.4]} 49... Nc4 {[%clk
0:00:12.3]} 50. Rg3 {[%clk 0:00:12.6]} 50... Kxe7 {[%clk 0:00:13.4]} 51. Rxg5
{[%clk 0:00:13.6]} 51... Kd6 {[%clk 0:00:14]} 52. Rxg7 {[%clk 0:00:14.3]} 52...
Kc5 {[%clk 0:00:15.6]} 53. Kb1 {[%clk 0:00:15.1]} 53... Kd4 {[%clk 0:00:16.6]}
54. Rg4+ {[%clk 0:00:16]} 54... Kc3 {[%clk 0:00:17.3]} 55. Rg3+ {[%clk
0:00:17.5]} 55... Kb4 {[%clk 0:00:18.5]} 56. Rb3+ {[%clk 0:00:18]} 56... Kc5
{[%clk 0:00:19.1]} 57. Rd3 {[%clk 0:00:19.5]} 57... d4 {[%clk 0:00:20.1]} 58. c3
{[%clk 0:00:20.1]} 58... Ne5 {[%clk 0:00:21.9]} 59. cxd4+ {[%clk 0:00:20.3]}
59... Kc4 {[%clk 0:00:23]} 60. dxe5 {[%clk 0:00:22.2]} 1-0

[Event "*** Titled Tuesday Blitz"]
[Site "Chess.com"]
[Date "2018.09.04"]
[Round "2"]
[White "Alopekos"]
[Black "JoachimMouhamad"]
[Result "0-1"]
[WhiteElo "2421"]
[BlackElo "2406"]
[TimeControl "180+2"]
[EndTime "13:57:56 PDT"]
[Termination "JoachimMouhamad won on time"]

1. e4 {[%clk 0:03:01.9]} 1... e5 {[%clk 0:02:57.2]} 2. Nf3 {[%clk 0:03:02.8]}
2... Nc6 {[%clk 0:02:58.3]} 3. Bb5 {[%clk 0:03:04.2]} 3... Nf6 {[%clk
0:02:58.8]} 4. d3 {[%clk 0:03:04.1]} 4... Bc5 {[%clk 0:02:59.5]} 5. O-O {[%clk
0:03:03.3]} 5... d6 {[%clk 0:02:58.8]} 6. c3 {[%clk 0:03:04.2]} 6... Bb6 {[%clk
0:02:49.6]} 7. a4 {[%clk 0:02:57.2]} 7... a6 {[%clk 0:02:49.9]} 8. Bc4 {[%clk
0:02:54.6]} 8... O-O {[%clk 0:02:50.7]} 9. b4 {[%clk 0:02:52.7]} 9... Ne7 {[%clk
0:02:47]} 10. a5 {[%clk 0:02:52]} 10... Ba7 {[%clk 0:02:48.2]} 11. Bg5 {[%clk
0:02:49.7]} 11... Ng6 {[%clk 0:02:49.3]} 12. Nh4 {[%clk 0:02:51.3]} 12... Nf4
{[%clk 0:02:25]} 13. Qf3 {[%clk 0:01:40.4]} 13... c6 {[%clk 0:01:30.5]} 14. Bxf4
{[%clk 0:01:31.3]} 14... exf4 {[%clk 0:01:31.7]} 15. Qxf4 {[%clk 0:01:33.2]}
15... Nh5 {[%clk 0:01:25.4]} 16. Qf3 {[%clk 0:00:57.5]} 16... Qxh4 {[%clk
0:01:25.8]} 17. g3 {[%clk 0:00:53.6]} 17... Qh3 {[%clk 0:01:07.7]} 18. d4 {[%clk
0:00:54.5]} 18... Bg4 {[%clk 0:01:04.8]} 19. Qe3 {[%clk 0:00:25.2]} 19... Rae8
{[%clk 0:01:01]} 20. Re1 {[%clk 0:00:22.2]} 20... d5 {[%clk 0:00:57.8]} 21. Bf1
{[%clk 0:00:23.1]} 21... Rxe4 {[%clk 0:00:52.3]} 22. Qxe4 {[%clk 0:00:10.6]}
22... Qxf1+ {[%clk 0:00:46]} 23. Kxf1 {[%clk 0:00:10.3]} 23... dxe4 {[%clk
0:00:47.2]} 24. Rxe4 {[%clk 0:00:11]} 24... Nf6 {[%clk 0:00:46.4]} 25. Re7
{[%clk 0:00:09.6]} 25... Bb8 {[%clk 0:00:40.2]} 26. Nd2 {[%clk 0:00:09]} 26...
Bc8 {[%clk 0:00:36.7]} 27. c4 {[%clk 0:00:05.4]} 27... Bd6 {[%clk 0:00:36.2]}
28. Re2 {[%clk 0:00:04.6]} 28... Bxb4 {[%clk 0:00:37.5]} 29. Nb3 {[%clk
0:00:05.2]} 29... Bg4 {[%clk 0:00:35]} 30. Re3 {[%clk 0:00:06]} 30... Be6 {[%clk
0:00:23.4]} 31. Rc1 {[%clk 0:00:06.5]} 31... Rd8 {[%clk 0:00:19.8]} 32. f3
{[%clk 0:00:06.5]} 32... h5 {[%clk 0:00:18.1]} 33. Kf2 {[%clk 0:00:05.7]} 33...
g6 {[%clk 0:00:17.1]} 34. Re2 {[%clk 0:00:04.4]} 34... Kg7 {[%clk 0:00:16.9]}
35. Rec2 {[%clk 0:00:04.8]} 35... Ba3 {[%clk 0:00:12.5]} 36. Ra1 {[%clk
0:00:05.1]} 36... Bb4 {[%clk 0:00:13.6]} 37. Ra4 {[%clk 0:00:05.5]} 37... Be7
{[%clk 0:00:14.6]} 38. Ra1 {[%clk 0:00:03.9]} 38... Rd7 {[%clk 0:00:14]} 39.
Rac1 {[%clk 0:00:04.2]} 39... Rd8 {[%clk 0:00:15.4]} 40. Ra1 {[%clk 0:00:05.1]}
40... g5 {[%clk 0:00:15.7]} 41. Re1 {[%clk 0:00:04.3]} 41... g4 {[%clk
0:00:15.6]} 42. d5 {[%clk 0:00:03]} 42... cxd5 {[%clk 0:00:15]} 43. cxd5 {[%clk
0:00:04.4]} 43... Rxd5 {[%clk 0:00:15.3]} 44. Rd2 {[%clk 0:00:03.2]} 44... Rxd2+
{[%clk 0:00:13.2]} 45. Nxd2 {[%clk 0:00:05.1]} 45... Bc5+ {[%clk 0:00:14.3]} 46.
Ke2 {[%clk 0:00:05.3]} 46... Nd5 {[%clk 0:00:10.9]} 47. fxg4 {[%clk 0:00:04.4]}
47... hxg4 {[%clk 0:00:10.8]} 48. Ne4 {[%clk 0:00:05]} 48... Bb4 {[%clk
0:00:11.9]} 49. Rc1 {[%clk 0:00:03.6]} 49... Bxa5 {[%clk 0:00:12.2]} 50. Nc5
{[%clk 0:00:04.1]} 50... Bc8 {[%clk 0:00:10.6]} 51. Nb3 {[%clk 0:00:05.2]} 51...
Nc3+ {[%clk 0:00:08.7]} 52. Kd3 {[%clk 0:00:05.4]} 52... Bf5+ {[%clk 0:00:09.6]}
53. Ke3 {[%clk 0:00:04.7]} 53... Bb6+ {[%clk 0:00:07.9]} 54. Kd2 {[%clk
0:00:03.1]} 54... Nd5 {[%clk 0:00:07.4]} 55. Rf1 {[%clk 0:00:02.7]} 55... Bg6
{[%clk 0:00:07.9]} 0-1

[Event "*** Titled Tuesday Blitz"]
[Site "Chess.com"]
[Date "2018.09.04"]
[Round "2"]
[White "Eliwood44"]
[Black "PowerThinking2650"]
[Result "1/2-1/2"]
[WhiteElo "2171"]
[BlackElo "2220"]
[TimeControl "180+2"]
[EndTime "13:58:18 PDT"]
[Termination "Game drawn by stalemate"]

1. d4 {[%clk 0:03:01.9]} 1... Nf6 {[%clk 0:02:58]} 2. Nf3 {[%clk 0:02:56.4]}
2... g6 {[%clk 0:02:56.7]} 3. Nc3 {[%clk 0:02:40.3]} 3... d5 {[%clk 0:02:55.6]}
4. Bf4 {[%clk 0:02:40.2]} 4... Bg7 {[%clk 0:02:55.9]} 5. Nb5 {[%clk 0:02:41]}
5... Na6 {[%clk 0:02:55.6]} 6. h3 {[%clk 0:02:42.2]} 6... O-O {[%clk 0:02:55.5]}
7. e3 {[%clk 0:02:42.5]} 7... c6 {[%clk 0:02:56]} 8. Na3 {[%clk 0:02:42.9]} 8...
Nc7 {[%clk 0:02:56.5]} 9. Bd3 {[%clk 0:02:43.3]} 9... Ne4 {[%clk 0:02:54]} 10.
O-O {[%clk 0:02:43]} 10... b5 {[%clk 0:02:39]} 11. Bxe4 {[%clk 0:02:42.7]} 11...
dxe4 {[%clk 0:02:39.3]} 12. Nd2 {[%clk 0:02:44.2]} 12... f5 {[%clk 0:02:39.3]}
13. c4 {[%clk 0:02:44.5]} 13... bxc4 {[%clk 0:02:31.2]} 14. Naxc4 {[%clk
0:02:46.4]} 14... Nd5 {[%clk 0:02:30]} 15. Be5 {[%clk 0:02:44.3]} 15... Be6
{[%clk 0:02:25.5]} 16. Bxg7 {[%clk 0:02:40.6]} 16... Kxg7 {[%clk 0:02:24.7]} 17.
Rc1 {[%clk 0:02:42.5]} 17... Nb4 {[%clk 0:02:23.9]} 18. Ne5 {[%clk 0:02:39.3]}
18... Nxa2 {[%clk 0:02:01.7]} 19. Rxc6 {[%clk 0:02:39]} 19... Bd5 {[%clk
0:02:02.2]} 20. Rc5 {[%clk 0:02:33.8]} 20... Nb4 {[%clk 0:01:52.9]} 21. Qa4
{[%clk 0:02:33.4]} 21... a5 {[%clk 0:01:29.6]} 22. Ra1 {[%clk 0:02:32.6]} 22...
f4 {[%clk 0:01:22]} 23. Rxa5 {[%clk 0:02:30.6]} 23... Rxa5 {[%clk 0:01:15.7]}
24. Qxa5 {[%clk 0:02:31.6]} 24... Nc2 {[%clk 0:01:06.8]} 25. Qxd8 {[%clk
0:02:31.4]} 25... Rxd8 {[%clk 0:01:06.7]} 26. Rc1 {[%clk 0:02:32.2]} 26... fxe3
{[%clk 0:01:03.6]} 27. Rxc2 {[%clk 0:02:32.8]} 27... exd2 {[%clk 0:00:52.3]} 28.
Rxd2 {[%clk 0:02:32]} 28... Rc8 {[%clk 0:00:48.4]} 29. Ng4 {[%clk 0:02:29.9]}
29... Rc1+ {[%clk 0:00:45.2]} 30. Kh2 {[%clk 0:02:30.4]} 30... Bc4 {[%clk
0:00:41.7]} 31. d5 {[%clk 0:02:28.2]} 31... h5 {[%clk 0:00:39.1]} 32. Ne5 {[%clk
0:02:26.9]} 32... Kf6 {[%clk 0:00:33.2]} 33. Nxc4 {[%clk 0:02:24.4]} 33... Rxc4
{[%clk 0:00:31.8]} 34. d6 {[%clk 0:02:25.8]} 34... exd6 {[%clk 0:00:32.1]} 35.
Rxd6+ {[%clk 0:02:27.7]} 35... Kf5 {[%clk 0:00:33.1]} 36. Rb6 {[%clk 0:02:23.2]}
36... h4 {[%clk 0:00:31.2]} 37. g4+ {[%clk 0:02:20.6]} 37... Kg5 {[%clk
0:00:23.2]} 38. Kg2 {[%clk 0:02:20.9]} 38... Rc2 {[%clk 0:00:23.3]} 39. Rb3
{[%clk 0:02:14.9]} 39... Kf4 {[%clk 0:00:22.3]} 40. Rb4 {[%clk 0:02:15.5]} 40...
Rd2 {[%clk 0:00:15.1]} 41. Rb6 {[%clk 0:02:14.4]} 41... e3 {[%clk 0:00:12.9]}
42. Rf6+ {[%clk 0:02:14.5]} 42... Kg5 {[%clk 0:00:13.2]} 43. Rf3 {[%clk
0:02:10.2]} 43... e2 {[%clk 0:00:11.8]} 44. Re3 {[%clk 0:02:09.5]} 44... Rxb2
{[%clk 0:00:12.6]} 45. Kf3 {[%clk 0:02:08.9]} 45... Rb3 {[%clk 0:00:10.6]} 46.
Kxe2 {[%clk 0:02:06.6]} 46... Rb2+ {[%clk 0:00:09.4]} 47. Kf3 {[%clk 0:02:07.7]}
47... Rb4 {[%clk 0:00:10.2]} 48. Re5+ {[%clk 0:02:07.5]} 48... Kf6 {[%clk
0:00:11.2]} 49. Rc5 {[%clk 0:02:04.5]} 49... Rb3+ {[%clk 0:00:10.2]} 50. Kg2
{[%clk 0:02:05.4]} 50... g5 {[%clk 0:00:10.4]} 51. Rf5+ {[%clk 0:02:05.6]} 51...
Kg6 {[%clk 0:00:11.3]} 52. Rf3 {[%clk 0:02:07.2]} 52... Rb1 {[%clk 0:00:11]} 53.
Ra3 {[%clk 0:02:06.2]} 53... Rb2 {[%clk 0:00:09.1]} 54. Kf3 {[%clk 0:02:06.7]}
54... Rc2 {[%clk 0:00:09.5]} 55. Ra6+ {[%clk 0:02:07]} 55... Kg7 {[%clk
0:00:10.3]} 56. Rd6 {[%clk 0:02:07.7]} 56... Rb2 {[%clk 0:00:11]} 57. Rd3 {[%clk
0:02:04.1]} 57... Ra2 {[%clk 0:00:09.8]} 58. Rc3 {[%clk 0:02:03.6]} 58... Kg6
{[%clk 0:00:10.3]} 59. Ke3 {[%clk 0:02:04.7]} 59... Rb2 {[%clk 0:00:10.9]} 60.
f4 {[%clk 0:02:02.7]} 60... gxf4+ {[%clk 0:00:09.7]} 61. Kxf4 {[%clk 0:02:04.6]}
61... Rf2+ {[%clk 0:00:10.8]} 62. Ke3 {[%clk 0:02:03.6]} 62... Rg2 {[%clk
0:00:09.6]} 63. Rc6+ {[%clk 0:02:02.3]} 63... Kg5 {[%clk 0:00:08.6]} 64. Rc5+
{[%clk 0:02:03.2]} 64... Kg6 {[%clk 0:00:09.1]} 65. Rf5 {[%clk 0:02:03.7]} 65...
Rg3+ {[%clk 0:00:09.2]} 66. Rf3 {[%clk 0:02:04.8]} 66... Rxf3+ {[%clk 0:00:10]}
67. Kxf3 {[%clk 0:02:06.7]} 67... Kg5 {[%clk 0:00:10.8]} 68. Ke4 {[%clk
0:02:03.8]} 68... Kg6 {[%clk 0:00:09.7]} 69. Kf4 {[%clk 0:02:00.5]} 69... Kh6
{[%clk 0:00:02.4]} 70. g5+ {[%clk 0:02:00.6]} 70... Kh5 {[%clk 0:00:02.8]} 71.
g6 {[%clk 0:01:52.6]} 71... Kxg6 {[%clk 0:00:02.2]} 72. Kg4 {[%clk 0:01:53.9]}
72... Kh6 {[%clk 0:00:04.1]} 73. Kxh4 {[%clk 0:01:55.8]} 73... Kg6 {[%clk
0:00:06]} 74. Kg4 {[%clk 0:01:57.6]} 74... Kh6 {[%clk 0:00:07.8]} 75. h4 {[%clk
0:01:59.5]} 75... Kg6 {[%clk 0:00:09.7]} 76. h5+ {[%clk 0:02:01.4]} 76... Kh6
{[%clk 0:00:11.6]} 77. Kh4 {[%clk 0:02:03.3]} 77... Kh7 {[%clk 0:00:13.5]} 78.
Kg5 {[%clk 0:02:05.2]} 78... Kg7 {[%clk 0:00:15.3]} 79. h6+ {[%clk 0:02:07.1]}
79... Kh7 {[%clk 0:00:17.2]} 80. Kh5 {[%clk 0:02:09]} 80... Kh8 {[%clk
0:00:19.1]} 81. Kg6 {[%clk 0:02:10.9]} 81... Kg8 {[%clk 0:00:20.8]} 82. h7+
{[%clk 0:02:12.8]} 82... Kh8 {[%clk 0:00:22.7]} 83. Kh6 {[%clk 0:02:13.5]}
1/2-1/2